bitfinex-derivatives/quotes_ETHF0:USTF0_20240927
["timestamp","ask_amount","ask_price","bid_price","bid_amount"]
[1727458206882,4.82694675,2693.9,2693.8,1.752]
[1727458207287,3.89925675,2693.9,2693.8,1.752]
[1727458208977,4.82694675,2693.9,2693.8,1.752]
[1727458209793,4.50656,2693.9,2693.8,1.752]
[1727458210005,4.82683674,2693.9,2693.8,1.752]
[1727458210499,3.89914674,2693.9,2693.8,1.752]
[1727458211181,0.32027674,2693.9,2693.8,21.49970126]
[1727458211386,3.2078,2694.8,2694.7,0.37095]
[1727458211586,3.2078,2694.8,2694.7,5.02295]
[1727458212588,3.2078,2694.8,2694.7,4.652]
[1727458212784,3.2078,2694.8,2694.7,1.752]
[1727458213291,3.2078,2694.8,2694.7,2.12296]
[1727458213688,3.2078,2694.8,2694.7,8.73416]
[1727458213888,3.2078,2694.8,2694.7,4.652]
[1727458214392,3.2078,2694.8,2694.7,1.752]
[1727458214591,3.57875,2694.8,2694.7,1.752]
[1727458215493,3.2078,2694.8,2694.7,2.12296]
[1727458215689,3.2078,2694.8,2694.7,5.02296]
[1727458217195,3.2078,2694.8,2694.7,1.752]
[1727458217803,3.57875,2694.8,2694.7,1.752]
[1727458218605,3.2078,2694.8,2694.7,2.12296]
[1727458219694,3.2078,2694.8,2694.7,1.752]
[1727458219902,3.57875,2694.8,2694.7,1.752]
[1727458220291,3.2078,2694.8,2694.7,2.12296]
[1727458220789,3.2078,2694.8,2694.7,1.752]
[1727458220790,3.57875,2694.8,2694.7,1.752]
[1727458222700,3.2078,2694.8,2694.7,1.752]
[1727458223089,3.57875,2694.8,2694.7,1.752]
[1727458223497,3.2078,2694.8,2694.7,1.752]
[1727458223701,3.57875,2694.8,2694.7,1.752]
[1727458229502,3.2078,2694.8,2694.7,1.752]
[1727458229700,0.755,2695.2,2694.7,4.652]
[1727458229701,3.2078,2695.1,2694.7,4.652]
[1727458229900,0.755,2695.2,2694.9,2.9]
[1727458230202,0.37091,2695.1,2694.9,3.27093]
[1727458230713,1.1259,2695.2,2695.0,0.37092]
[1727458230902,3.2078,2695.1,2694.9,3.27093]
[1727458231209,3.57871,2695.1,2694.9,3.27093]
[1727458231701,3.2078,2695.1,2694.7,5.02295]
[1727458231899,0.37092,2695.0,2694.8,0.37095]
[1727458232094,0.37092,2695.0,2694.7,5.02295]
[1727458232415,0.37094,2694.9,2694.7,5.02296]
[1727458232596,0.37095,2694.8,2694.7,1.752]
[1727458232915,0.37093,2695.0,2694.7,4.652]
[1727458233208,0.37094,2694.9,2694.7,5.02295]
[1727458234513,3.2078,2695.1,2694.7,5.02295]
[1727458234514,0.37095,2694.8,2694.7,5.02296]
[1727458234817,0.37095,2694.8,2694.7,4.652]
[1727458235508,0.37094,2694.9,2694.7,5.02296]
[1727458235908,0.37094,2694.9,2694.7,4.652]
[1727458236312,0.37094,2694.9,2694.7,5.02295]
[1727458236518,0.37095,2694.8,2694.7,5.02295]
[1727458237413,0.37095,2694.8,2694.7,4.652]
[1727458238014,0.37095,2694.8,2694.7,5.02296]
[1727458238213,0.37095,2694.9,2694.8,0.37095]
[1727458238613,0.37095,2694.9,2694.7,5.02296]
[1727458239111,0.37095,2694.8,2694.7,5.02296]
[1727458239314,0.37094,2694.9,2694.8,0.37095]
[1727458239610,3.57872,2695.1,2694.7,4.652]
[1727458239811,0.37094,2694.9,2694.8,0.37094]
[1727458240009,0.37095,2694.8,2694.7,5.02296]
[1727458240219,0.37095,2694.8,2694.7,4.652]
[1727458241013,0.37095,2694.8,2694.7,1.752]
[1727458241207,15.14471,2694.8,2694.7,0.41610002]
[1727458241515,0.37106,2694.1,2693.9,0.37107]
[1727458241813,0.92758,2694.3,2693.8,2.9]
[1727458241814,0.37107,2694.0,2693.8,2.9]
[1727458242016,3.2078,2694.0,2693.9,0.37107]
[1727458242318,3.57886,2694.0,2693.9,0.37107]
[1727458242708,0.37107,2693.9,2693.8,3.27108]
[1727458242910,3.57887,2694.0,2693.9,0.37107]
[1727458243406,0.37107,2693.9,2693.8,2.9]
[1727458243605,0.37109,2693.8,2693.7,1.7201]
[1727458244201,0.37109,2693.8,2693.7,1.349]
[1727458244605,0.37109,2693.8,2693.4,0.6698]
[1727458244606,3.712,2693.8,2693.4,0.6698]
[1727458244805,3.712,2693.8,2693.4,0.37114]
[1727458244806,0.37113,2693.5,2693.4,0.37114]
[1727458245004,0.37113,2693.6,2693.4,0.37114]
[1727458245207,0.37113,2693.6,2693.5,0.37113]
[1727458245406,0.37112,2693.6,2693.4,0.37113]
[1727458245918,0.6565,2693.7,2693.5,0.37113]
[1727458246219,3.8643,2693.7,2693.2,1.3258]
[1727458246607,0.37113,2693.5,2693.3,2.9]
[1727458246802,0.37113,2693.5,2693.4,0.37114]
[1727458247117,0.37113,2693.5,2693.3,3.27115]
[1727458247317,3.57894,2693.4,2693.3,2.9]
[1727458248111,3.57894,2693.4,2693.3,3.27116]
[1727458248313,0.6565,2693.7,2693.6,0.37112]
[1727458248629,0.37113,2693.5,2693.3,2.9]
[1727458249312,0.37113,2693.6,2693.4,0.37114]
[1727458249509,0.6565,2693.7,2693.2,1.3258]
[1727458249510,0.37114,2693.4,2693.2,1.69696]
[1727458250612,3.2078,2693.5,2693.2,1.69696]
[1727458250613,3.57894,2693.5,2693.3,0.37115]
[1727458250807,0.37115,2693.4,2693.2,1.69697]
[1727458251321,3.57894,2693.5,2693.3,0.37115]
[1727458251512,0.37115,2693.4,2693.2,1.69697]
[1727458251706,3.2078,2693.5,2693.4,0.37114]
[1727458251906,3.57894,2693.5,2693.3,3.27115]
[1727458252409,3.2078,2693.5,2693.4,0.37114]
[1727458252804,3.57893,2693.5,2693.4,0.37114]
[1727458253229,3.2078,2693.5,2693.4,0.37114]
[1727458253921,0.37112,2693.6,2693.5,0.37112]
[1727458254114,0.37112,2693.6,2693.3,2.9]
[1727458254416,0.37112,2693.6,2693.4,0.37113]
[1727458254621,0.37113,2693.5,2693.4,0.37113]
[1727458255320,0.37113,2693.5,2693.2,0.37116]
[1727458255321,7.84843,2693.5,2693.2,0.37116]
[1727458255518,0.37115,2693.4,2693.3,0.37115]
[1727458256613,0.37115,2693.4,2693.3,0.37116]
[1727458256809,0.37115,2693.4,2693.1,3.5584]
[1727458257023,3.2078,2693.5,2693.1,3.92957]
[1727458257024,4.13564,2693.5,2693.1,3.92957]
[1727458257320,0.37117,2693.2,2693.1,3.92958]
[1727458257722,0.37117,2693.2,2693.1,3.5584]
[1727458258314,0.37117,2693.2,2693.1,3.92958]
[1727458259520,0.37117,2693.2,2693.1,3.5584]
[1727458259817,1.2992,2693.0,2692.9,0.6306]
[1727458260026,0.37119,2693.1,2692.9,0.6306]
[1727458260213,0.37119,2693.1,2693.0,0.37119]
[1727458260620,0.3712,2693.0,2692.9,3.9018]
[1727458261623,4.13576,2693.2,2692.9,1.00181]
[1727458261624,3.2078,2693.2,2692.9,1.00181]
[1727458261811,0.3712,2693.1,2693.0,0.3712]
[1727458262207,0.3712,2693.1,2692.9,1.0018]
[1727458262717,3.57898,2693.2,2693.0,0.37119]
[1727458262921,3.2078,2693.2,2693.0,0.37119]
[1727458263120,3.2078,2693.2,2692.9,3.9018]
[1727458263317,0.3712,2693.0,2692.9,3.5306]
[1727458263617,0.3712,2693.0,2692.9,3.90181]
[1727458264318,3.7136,2693.0,2692.7,2.9]
[1727458264522,0.37122,2692.9,2692.7,3.27123]
[1727458264730,0.37122,2692.9,2692.8,0.37123]
[1727458264925,0.37122,2692.9,2692.7,3.27123]
[1727458265114,3.2078,2693.2,2692.9,0.37121]
[1727458265316,0.37119,2693.1,2693.0,0.3712]
[1727458265817,0.3712,2693.0,2692.7,2.9]
[1727458266123,0.3712,2693.0,2692.8,0.37122]
[1727458266321,0.3712,2693.0,2692.9,0.37121]
[1727458266522,3.2078,2693.2,2693.0,0.37119]
[1727458266714,3.2078,2693.2,2693.1,3.27118]
[1727458267116,3.2078,2693.5,2693.4,0.37114]
[1727458267320,3.2078,2693.8,2693.3,2.9]
[1727458267530,0.086,2694.6,2693.9,0.92768]
[1727458267715,0.1,2694.7,2694.2,2.9]
[1727458267716,1.02437,2694.7,2694.2,2.9]
[1727458268029,3.2078,2694.5,2694.4,0.37101]
[1727458268416,3.2078,2695.3,2694.6,0.92743]
[1727458268625,3.2078,2695.3,2695.1,3.2709]
[1727458268817,3.2078,2695.3,2695.2,0.3709]
[1727458269127,3.2078,2695.3,2695.2,4.0813]
[1727458269524,3.2078,2695.3,2695.2,0.3709]
[1727458270228,3.2078,2695.3,2695.1,2.9]
[1727458270229,3.2078,2695.3,2695.1,3.2709]
[1727458270424,3.2078,2695.3,2695.0,0.37092]
[1727458270728,3.57868,2695.3,2695.0,0.37092]
[1727458270931,3.57868,2695.3,2694.9,3.27093]
[1727458271420,0.3709,2695.2,2694.9,3.27093]
[1727458271919,3.2078,2695.0,2694.9,3.27094]
[1727458272124,3.2078,2695.0,2694.9,2.9]
[1727458272815,3.2078,2695.0,2694.9,3.27094]
[1727458273518,3.2078,2695.0,2694.8,1.03694]
[1727458273921,3.2078,2695.0,2694.9,0.37094]
[1727458274122,3.2078,2695.0,2694.9,3.27094]
[1727458275122,0.3709,2695.2,2695.0,0.37092]
[1727458275429,3.2078,2695.4,2695.1,2.9]
[1727458275619,3.2078,2695.4,2695.3,0.37088]
[1727458279626,3.2078,2695.4,2695.3,4.08128]
[1727458279929,0.37081,2695.9,2695.6,0.37083]
[1727458279930,3.2078,2695.7,2695.6,0.37083]
[1727458280129,3.2078,2695.7,2695.6,3.27083]
[1727458280630,3.2078,2696.3,2696.2,0.37075]
[1727458280826,3.57854,2696.3,2696.2,2.9]
[1727458281135,3.2078,2696.3,2696.2,3.27076]
[1727458281534,3.2078,2696.3,2696.2,2.9]
[1727458282038,3.57854,2696.3,2696.2,2.9]
[1727458282437,3.2078,2696.3,2696.2,3.27076]
[1727458285630,3.2078,2696.3,2696.2,2.9]
[1727458285836,3.2078,2696.3,2696.2,3.27076]
[1727458286232,3.2078,2696.6,2696.5,0.37072]
[1727458286535,3.2078,2696.6,2696.5,3.27072]
[1727458286926,0.37067,2696.9,2696.7,0.37068]
[1727458287125,0.37067,2696.9,2696.8,2.9]
[1727458288229,0.37067,2696.9,2696.5,0.37071]
[1727458288426,3.57849,2696.7,2696.6,2.9]
[1727458288832,3.2078,2696.7,2696.6,2.9]
[1727458289134,3.2078,2696.7,2696.6,3.2707]
[1727458290631,3.2078,2696.7,2696.6,7.90546]
[1727458290829,3.2078,2697.0,2696.9,0.37066]
[1727458291027,0.37062,2697.3,2697.1,0.37062]
[1727458291428,0.37063,2697.2,2697.0,0.37064]
[1727458291633,0.37063,2697.2,2697.1,2.9]
[1727458291826,3.57843,2697.2,2697.1,2.9]
[1727458292033,0.92659,2697.1,2696.5,3.593]
[1727458292235,0.3707,2696.7,2696.5,2.9]
[1727458292528,0.3707,2696.7,2696.5,3.27071]
[1727458292732,3.2078,2696.8,2696.5,3.27071]
[1727458292733,3.57848,2696.8,2696.6,0.37069]
[1727458292929,3.57848,2696.8,2696.5,2.9]
[1727458292930,3.57848,2696.8,2696.7,2.9]
[1727458293132,4.50518,2696.8,2696.7,2.9]
[1727458293335,4.50518,2696.8,2696.4,0.37072]
[1727458293336,0.37073,2696.4,2696.3,2.9]
[1727458293531,0.37073,2696.4,2696.0,3.2078]
[1727458293532,0.37078,2696.1,2696.0,2.9]
[1727458293834,3.57852,2696.5,2696.4,0.37073]
[1727458294040,3.57852,2696.5,2696.4,3.27073]
[1727458294224,3.2078,2696.5,2696.4,3.27073]
[1727458294426,3.2078,2696.9,2696.7,0.37069]
[1727458294627,0.37068,2696.8,2696.7,3.27069]
[1727458294826,3.57847,2696.9,2696.7,3.27069]
[1727458295334,0.37068,2696.8,2696.7,3.27069]
[1727458295735,3.2078,2696.9,2696.7,3.27069]
[1727458295736,3.2078,2696.9,2696.8,0.37068]
[1727458296630,3.2078,2696.9,2696.8,1.05608]
[1727458296830,4.5816,2697.3,2697.1,0.37063]
[1727458297037,4.5816,2697.3,2697.2,2.9]
[1727458297038,4.95221,2697.3,2697.2,2.9]
[1727458297636,4.95221,2697.3,2697.2,3.27062]
[1727458297637,4.5816,2697.3,2697.2,3.27062]
[1727458297933,4.5816,2697.3,2696.4,3.27072]
[1727458297934,0.37071,2696.6,2696.4,3.27072]
[1727458298242,3.2078,2696.6,2696.4,2.9]
[1727458298439,3.2078,2696.6,2696.5,0.37072]
[1727458298741,3.2078,2696.6,2696.4,2.9]
[1727458298742,3.5785,2696.6,2696.4,2.9]
[1727458298946,3.2078,2696.6,2696.4,2.9]
[1727458299137,3.2078,2696.6,2696.5,0.37072]
[1727458301332,3.2078,2696.6,2696.5,5.00632]
[1727458301536,3.2078,2696.6,2696.5,11.00632]
[1727458301733,3.2078,2696.6,2696.5,5.00632]
[1727458302240,0.37068,2696.8,2696.5,3.7088]
[1727458302442,0.37068,2696.8,2696.7,3.27069]
[1727458302831,0.37068,2696.8,2696.7,2.9]
[1727458303035,0.37072,2696.5,2696.4,2.9]
[1727458303338,3.57852,2696.5,2696.4,3.27073]
[1727458303638,3.57852,2696.5,2696.4,2.9]
[1727458304035,3.57852,2696.5,2696.4,3.27073]
[1727458304234,3.57852,2696.5,2696.4,2.9]
[1727458305139,3.57852,2696.5,2696.4,3.27073]
[1727458305348,1.2884,2696.7,2696.5,0.37071]
[1727458305647,1.2884,2696.7,2696.4,2.9]
[1727458305648,0.37072,2696.5,2696.4,0.37072]
[1727458305945,0.37071,2696.6,2696.5,0.3707]
[1727458306836,0.37071,2696.6,2696.5,0.37071]
[1727458307140,3.2078,2696.8,2696.5,2.9]
[1727458307336,3.2078,2696.8,2696.7,0.37069]
[1727458308035,3.2078,2696.8,2696.7,4.07869]
[1727458308234,0.37067,2696.9,2696.5,3.5584]
[1727458308438,0.37067,2696.9,2696.8,2.9]
[1727458308642,0.37066,2697.0,2696.9,0.37066]
[1727458308844,0.37066,2697.0,2696.8,3.27067]
[1727458309144,0.37066,2696.9,2696.8,2.9]
[1727458309550,0.37066,2696.9,2696.8,3.27068]
[1727458310146,0.37066,2696.9,2696.8,2.9]
[1727458311240,0.37066,2696.9,2696.8,3.27068]
[1727458311537,0.37065,2697.0,2696.8,2.9]
[1727458311742,0.37065,2697.0,2696.9,3.27066]
[1727458311947,3.57844,2697.1,2697.0,0.37065]
[1727458312354,0.37065,2697.0,2696.9,3.27066]
[1727458313238,3.57844,2697.1,2697.0,0.37065]
[1727458313546,3.2078,2697.1,2696.9,2.9]
[1727458313748,0.37065,2697.0,2696.9,3.27065]
[1727458316347,3.57844,2697.1,2697.0,0.37065]
[1727458316745,0.37065,2697.0,2696.9,3.27065]
[1727458318643,0.37069,2696.7,2696.6,0.6309]
[1727458318839,0.92663,2697.0,2696.6,0.3707]
[1727458318840,4.1345,2696.8,2696.6,0.3707]
[1727458319038,0.37071,2696.6,2696.5,0.37071]
[1727458319344,0.37071,2696.6,2696.5,3.27071]
[1727458321650,0.37071,2696.6,2696.5,2.9]
[1727458321950,0.37071,2696.6,2696.5,3.27072]
[1727458322152,0.37071,2696.6,2696.5,2.9]
[1727458322551,0.3707,2696.7,2696.5,2.9]
[1727458322754,0.3707,2696.7,2696.6,0.37069]
[1727458322942,3.57849,2696.8,2696.7,0.37069]
[1727458323150,3.57849,2696.8,2696.7,3.27069]
[1727458323344,3.57849,2696.8,2696.7,2.9]
[1727458323547,0.3707,2696.6,2696.5,2.9]
[1727458323850,1.29746,2696.6,2696.5,2.9]
[1727458324055,9.7088,2696.6,2695.9,0.97043825]
[1727458324244,0.37083,2695.7,2695.6,1.34126825]
[1727458324447,0.927,2695.9,2695.5,1.34127825]
[1727458324651,0.927,2695.9,2695.8,0.37081]
[1727458324652,1.6735,2695.9,2695.8,0.37081]
[1727458324961,1.3027,2695.9,2695.7,3.27082]
[1727458325161,0.37081,2695.8,2695.7,3.27082]
[1727458325457,0.37081,2695.8,2695.7,2.9]
[1727458325656,0.37081,2695.8,2695.7,3.27083]
[1727458325955,1.67351,2695.9,2695.7,3.27083]
[1727458326144,3.2078,2696.0,2695.7,2.9]
[1727458326343,3.2078,2696.0,2695.9,3.2708]
[1727458326755,3.57854,2696.4,2696.2,0.37076]
[1727458326956,3.2078,2696.4,2696.3,0.37074]
[1727458328866,0.6804,2696.8,2696.6,0.3707]
[1727458328867,3.8882,2696.8,2696.6,0.3707]
[1727458329159,3.57848,2696.8,2696.7,2.9]
[1727458329352,3.57848,2696.8,2696.5,2.9]
[1727458329353,0.3707,2696.6,2696.5,2.9]
[1727458329551,3.2078,2696.8,2696.5,2.9]
[1727458329767,3.2078,2696.8,2696.7,3.27069]
[1727458330253,3.2078,2696.8,2696.7,6.97869]
[1727458330655,3.2078,2696.8,2696.7,7.62259]
[1727458331951,0.37065,2697.0,2696.9,0.37066]
[1727458332256,0.37064,2697.1,2697.0,0.37064]
[1727458332848,0.37065,2697.0,2696.9,3.27065]
[1727458333058,0.37065,2697.0,2696.9,3.27066]
[1727458333262,0.37064,2697.1,2697.0,0.37063]
[1727458333564,0.37064,2697.1,2697.0,0.37064]
[1727458333963,3.2078,2697.2,2696.9,2.9]
[1727458333964,3.57843,2697.2,2696.9,2.9]
[1727458334258,0.37064,2697.1,2697.0,0.37064]
[1727458334462,0.37065,2697.0,2696.9,2.9]
[1727458335853,0.37065,2697.0,2696.9,3.27066]
[1727458339468,0.37065,2697.0,2696.9,2.9]
[1727458339667,0.37066,2696.9,2696.8,0.37066]
[1727458339866,3.57846,2696.9,2696.8,0.37066]
[1727458341571,3.2078,2696.9,2696.8,0.37066]
[1727458343265,3.57846,2696.9,2696.8,0.37066]
[1727458343474,0.3707,2696.6,2696.5,0.97043825]
[1727458343767,0.37073,2696.4,2696.3,3.27073]
[1727458344157,3.2078,2696.6,2696.3,2.9]
[1727458344158,3.57851,2696.6,2696.3,2.9]
[1727458344355,3.2078,2696.6,2696.5,3.27072]
[1727458344568,0.3707,2696.7,2696.6,0.3707]
[1727458344869,1.70438,2696.8,2696.7,0.37069]
[1727458345267,0.37068,2696.8,2696.7,0.37069]
[1727458345470,3.2078,2696.9,2696.8,0.37068]
[1727458345768,3.2078,2696.9,2696.8,3.27068]
[1727458345964,3.2078,2696.9,2696.8,4.19738]
[1727458346475,3.2078,2696.9,2696.8,5.16781825]
[1727458346669,3.2078,2696.9,2696.8,4.24111825]
[1727458346967,3.2078,2696.9,2696.8,3.27068]
[1727458347166,3.2078,2696.9,2696.8,5.16781825]
[1727458347367,3.2078,2696.9,2696.8,4.19738]
[1727458348670,3.2078,2696.9,2696.8,3.27068]
[1727458348963,3.2078,2697.3,2697.2,0.37062]
[1727458349165,3.2078,2697.3,2697.2,3.27062]
[1727458351963,3.2078,2697.3,2697.2,6.97782]
[1727458352169,3.57837,2697.6,2697.4,0.37059]
[1727458352390,3.57837,2697.6,2697.5,2.9]
[1727458352677,3.2078,2697.6,2697.5,3.27058]
[1727458352974,3.2078,2697.6,2697.5,2.9]
[1727458353281,3.2078,2697.6,2697.5,3.27058]
[1727458353477,3.57837,2697.6,2697.5,2.9]
[1727458355480,3.2078,2697.6,2697.5,3.27058]
[1727458355775,0.37056,2697.7,2697.6,0.37057]
[1727458355976,0.37056,2697.7,2697.5,3.27057]
[1727458356576,3.2078,2697.6,2697.5,3.27057]
[1727458357483,3.2078,2697.9,2697.8,0.37054]
[1727458357679,3.57832,2697.9,2697.8,2.9]
[1727458358274,3.57832,2697.9,2697.8,3.27054]
[1727458358575,3.57832,2697.9,2697.8,6.97694]
[1727458358576,3.2078,2697.9,2697.8,6.97694]
[1727458358975,3.2078,2697.9,2697.8,7.90329]
[1727458359479,1.1094,2697.9,2697.8,7.90329]
[1727458359780,3.57828,2698.2,2698.1,0.3705]
[1727458359978,3.2078,2698.2,2698.1,3.2705]
[1727458360178,0.37047,2698.3,2698.2,0.37048]
[1727458360378,0.37047,2698.3,2698.2,3.27048]
[1727458360683,0.37047,2698.3,2698.2,2.9]
[1727458361070,0.37047,2698.3,2698.2,3.27048]
[1727458361378,0.37047,2698.3,2698.2,2.9]
[1727458363191,4.50445,2698.3,2697.9,3.2078]
[1727458363379,3.2078,2698.0,2697.3,6.1078]
[1727458363577,0.37059,2697.4,2697.3,3.2078]
[1727458363883,0.37059,2697.4,2697.3,6.1078]
[1727458364084,0.37059,2697.4,2697.3,2.9]
[1727458364280,0.37058,2697.5,2697.4,0.37058]
[1727458364783,1.02727,2697.6,2697.5,0.37058]
[1727458365079,1.02727,2697.6,2697.5,3.27058]
[1727458365784,0.6567,2697.6,2697.5,3.27058]
[1727458368079,0.6412,2697.9,2697.5,3.27058]
[1727458368289,1.01172,2697.9,2697.8,3.27054]
[1727458369078,0.6412,2697.9,2697.8,3.27054]
[1727458369282,4.26262,2698.0,2697.8,3.27054]
[1727458369503,0.37052,2697.9,2697.8,3.27054]
[1727458369904,0.37052,2697.9,2697.8,2.9]
[1727458370286,0.37052,2697.9,2697.8,3.27054]
[1727458370783,0.37052,2697.9,2697.8,2.9]
[1727458371285,0.37052,2697.9,2697.8,3.27054]
[1727458371480,0.37052,2697.9,2697.8,2.9]
[1727458371690,0.37052,2697.9,2697.3,4.79232]
[1727458371691,0.37055,2697.7,2697.6,2.9]
[1727458372082,1.02765,2697.7,2697.6,3.27057]
[1727458372385,1.02765,2697.7,2697.6,2.9]
[1727458372785,1.02765,2697.7,2697.6,3.27057]
[1727458372984,1.02765,2697.7,2697.6,2.9]
[1727458373983,1.02765,2697.7,2697.6,3.27057]
[1727458375392,1.02765,2697.7,2696.9,2.9]
[1727458375393,0.37061,2697.3,2696.9,2.9]
[1727458375596,0.37064,2697.1,2697.0,0.37063]
[1727458375915,1.3151,2697.2,2697.1,0.37063]
[1727458376381,1.68572,2697.2,2697.1,0.37063]
[1727458379498,2.34852,2697.2,2697.1,0.37063]
[1727458380593,2.34852,2697.2,2697.0,2.9]
[1727458380594,0.37066,2697.0,2696.9,0.37064]
[1727458380820,0.37066,2697.0,2696.7,1.01348]
[1727458380821,0.37068,2696.8,2696.7,1.01348]
[1727458380994,0.37068,2696.8,2696.7,0.37068]
[1727458381292,0.37069,2696.7,2696.6,3.27069]
[1727458381496,1.01779,2696.7,2696.6,3.27069]
[1727458381996,1.01779,2696.7,2696.6,2.9]
[1727458382197,8.86032,2696.7,2696.6,2.9]
[1727458382399,6.9158,2696.7,2696.6,2.9]
[1727458382601,0.37063,2697.2,2697.1,0.37062]
[1727458382898,0.37063,2697.2,2697.1,6.608]
[1727458382899,0.37062,2697.2,2697.1,6.608]
[1727458383396,0.37062,2697.2,2697.1,2.9]
[1727458383600,0.37065,2697.0,2696.9,2.9]
[1727458383798,0.37065,2697.0,2696.9,6.608]
[1727458384004,0.37065,2697.0,2696.9,6.97866]
[1727458384991,1.72114,2697.1,2697.0,0.37065]
[1727458385198,0.37065,2697.0,2696.9,6.97865]
[1727458385997,0.37065,2697.0,2696.9,6.608]
[1727458386192,1.72114,2697.1,2697.0,0.37065]
[1727458386796,1.72114,2697.1,2696.9,6.608]
[1727458386797,1.02552,2697.3,2697.2,0.37062]
[1727458387000,1.02552,2697.3,2697.2,3.27062]
[1727458387303,0.6549,2697.3,2697.2,3.27062]
[1727458387493,1.02551,2697.3,2697.2,2.9]
[1727458388000,0.6549,2697.3,2697.2,3.27062]
[1727458388297,0.6549,2697.3,2697.2,6.97862]
[1727458389003,4.13406,2698.1,2697.7,0.37055]
[1727458389191,0.37053,2697.9,2697.8,2.9]
[1727458389498,0.37053,2697.9,2697.8,3.27054]
[1727458389903,2.0478,2698.0,2697.9,0.37052]
[1727458389904,0.6934,2698.0,2697.9,0.37052]
[1727458390101,1.06392,2698.0,2697.8,3.27053]
[1727458390400,3.2078,2698.1,2697.6,0.6619]
[1727458390590,3.40817774,2698.9,2698.0,6.9158]
[1727458390591,0.7219,2698.9,2698.0,6.9158]
[1727458390792,0.6359,2698.9,2698.5,3.708]
[1727458391002,0.37042,2698.7,2698.5,3.708]
[1727458391197,0.37041,2698.8,2698.5,3.708]
[1727458391396,0.6359,2698.9,2698.5,3.708]
[1727458391698,0.37042,2698.7,2698.5,3.708]
[1727458391890,3.57822,2698.7,2698.4,2.9]
[1727458392087,0.37043,2698.6,2698.4,2.9]
[1727458392287,0.6727,2698.6,2698.4,2.9]
[1727458392501,0.37046,2698.4,2698.2,2.9]
[1727458392797,0.6359,2698.3,2698.2,6.608]
[1727458394000,1.00637,2698.3,2698.2,2.9]
[1727458394201,0.37049,2698.2,2697.9,2.9]
[1727458394503,0.6746,2698.1,2697.8,4.36]
[1727458394697,0.6359,2698.3,2698.0,4.07851]
[1727458395094,0.6359,2698.3,2698.1,0.37049]
[1727458395401,0.6359,2698.3,2698.2,4.07848]
[1727458395903,0.6359,2698.3,2698.2,3.708]
[1727458396797,0.6359,2698.3,2698.2,4.07848]
[1727458397505,3.2078,2698.6,2698.3,0.37046]
[1727458397702,0.37044,2698.5,2698.4,3.708]
[1727458398002,0.37044,2698.5,2698.0,3.2078]
[1727458398003,0.37048,2698.2,2698.0,3.2078]
[1727458398201,0.681,2698.1,2698.0,7.28631]
[1727458398404,1.70886,2698.4,2698.3,3.708]
[1727458398607,2.38986,2698.4,2698.3,3.708]
[1727458399307,0.37048,2698.3,2698.0,3.5783]
[1727458399606,0.37048,2698.3,2698.2,3.708]
[1727458401302,2.38987,2698.4,2698.2,3.708]
[1727458401607,0.37047,2698.3,2698.2,3.708]
[1727458402196,2.38987,2698.4,2698.2,3.708]
[1727458402802,0.37047,2698.3,2698.2,3.708]
[1727458403597,2.38986,2698.4,2698.2,3.708]
[1727458403802,2.38986,2698.4,2698.2,4.07848]
[1727458403994,0.37047,2698.3,2698.2,3.708]
[1727458404201,1.05146,2698.4,2698.2,4.07848]
[1727458404409,1.05146,2698.4,2698.2,3.708]
[1727458404715,0.681,2698.4,2698.2,4.07848]
[1727458404904,1.05146,2698.4,2698.2,4.07848]
[1727458405303,0.37047,2698.3,2698.2,3.708]
[1727458405503,1.05146,2698.4,2698.2,4.07848]
[1727458405704,1.05146,2698.4,2698.2,3.708]
[1727458405904,1.05146,2698.4,2698.2,4.07848]
[1727458406211,1.05147,2698.4,2698.2,3.708]
[1727458406411,0.37047,2698.3,2698.2,3.708]
[1727458407308,0.681,2698.4,2698.2,4.07848]
[1727458407610,0.37047,2698.3,2698.2,3.708]
[1727458407913,0.37054,2697.8,2697.7,3.8926]
[1727458408212,0.37056,2697.7,2697.5,0.37057]
[1727458408397,0.37056,2697.7,2697.6,3.708]
[1727458408601,0.6521,2697.8,2697.6,3.708]
[1727458408802,0.37055,2697.7,2697.6,3.708]
[1727458409299,0.37058,2697.5,2697.4,0.6474]
[1727458409699,0.37058,2697.5,2696.7,2.42896065]
[1727458409700,0.92659,2697.1,2696.7,2.42896065]
[1727458409911,0.37068,2696.8,2696.7,3.708]
[1727458410507,2.21474,2697.0,2696.5,0.37071]
[1727458410706,4.1345,2696.8,2696.5,3.708]
[1727458410911,0.37072,2696.5,2696.4,3.2078]
[1727458411122,0.92673,2696.7,2696.0,0.37078]
[1727458411410,0.92673,2696.7,2695.9,1.3052]
[1727458411411,0.6445,2696.4,2696.2,3.708]
[1727458411602,0.37075,2696.3,2696.2,3.708]
[1727458411916,0.6445,2696.4,2695.1,2.3859647]
[1727458411917,0.37079,2696.0,2695.6,0.37083]
[1727458412104,0.3708,2695.9,2695.5,3.57865]
[1727458412312,0.3708,2695.9,2695.8,3.708]
[1727458413315,0.37079,2696.0,2695.8,3.708]